fUSD/lending_fUSD_20250302
["ID","MTS","AMOUNT","RATE_DAILY","PERIOD"]
[355066479,1740886267642,-1656.93,0.00026839,2]
[355066481,1740886267652,-500.0,0.00026839,2]
[355066483,1740886267663,-2049.58,0.00026839,2]
[355066485,1740886267672,-1403.0,0.00026839,2]
[355066487,1740886267682,-599.61,0.00026839,2]
[355066489,1740886267691,-1415.66,0.00026839,2]
[355066490,1740886267700,-151.0,0.0002684,7]
[355066492,1740886267710,-1518.4,0.0002684,2]
[355066494,1740886267719,-1174.52,0.0002684,2]
[355066496,1740886267728,-568.93,0.00026842,2]
[355066498,1740886267738,-500.0,0.00026842,2]
[355066500,1740886267747,-500.0,0.00026842,2]
[355066502,1740886267756,-500.0,0.00026842,2]
[355066504,1740886267765,-500.0,0.00026842,2]
[355066506,1740886267775,-500.0,0.00026842,2]
[355066508,1740886267784,-1119.09,0.00026842,2]
[355066510,1740886267793,-500.0,0.00026842,2]
[355066512,1740886267802,-500.0,0.00026842,2]
[355066514,1740886267811,-500.0,0.00026842,2]
[355066516,1740886267821,-500.0,0.00026842,2]
[355066518,1740886267830,-1177.24,0.00026842,2]
[355066520,1740886267839,-737.91,0.00026842,2]
[355066522,1740886267849,-572.57,0.00026842,2]
[355066524,1740886267858,-500.0,0.00026842,2]
[355066526,1740886267868,-901.55,0.00026844,90]
[355066528,1740886267877,-222.69,0.00026845,2]
[355066530,1740886267885,-500.0,0.00026847,2]
[355066532,1740886267895,-500.0,0.00026847,2]
[355066533,1740886267904,-345.02810667,0.00026847,2]
[355066535,1740886267913,-500.0,0.00026847,2]
[355066537,1740886267923,-572.4,0.00026847,2]
[355066539,1740886267932,-500.0,0.00026847,2]
[355066541,1740886267941,-649.25,0.00026847,2]
[355066543,1740886267951,-372.75735297,0.00026847,2]
[355066545,1740886267959,-200.72,0.00026847,2]
[355066547,1740886267969,-500.0,0.00026847,2]
[355066549,1740886267978,-606.27,0.00026847,2]
[355066551,1740886267986,-512.54,0.00026847,2]
[355066553,1740886267996,-500.0,0.00026847,2]
[355066555,1740886268008,-500.0,0.00026847,2]
[355066557,1740886268017,-500.0,0.00026847,2]
[355066559,1740886268026,-530.55,0.00026847,2]
[355066561,1740886268035,-500.0,0.00026847,2]
[355066563,1740886268044,-500.0,0.00026847,2]
[355066565,1740886268054,-500.0,0.00026847,2]
[355066567,1740886268063,-308.76,0.00026847,2]
[355066569,1740886268074,-500.0,0.00026847,2]
[355066571,1740886268084,-500.0,0.00026847,2]
[355066573,1740886268093,-500.0,0.00026847,2]
[355066575,1740886268102,-500.0,0.00026847,2]
[355066576,1740886268112,-500.0,0.00026847,2]
[355066578,1740886268121,-550.83716184,0.00026847,2]
[355066580,1740886268130,-1302.52,0.00026847,2]
[355066582,1740886268140,-152.64,0.00026847,2]
[355066585,1740886268151,-533.35,0.00026847,2]
[355066587,1740886268160,-1313.5,0.00026847,2]
[355066588,1740886268170,-1610.22,0.00026847,2]
[355066590,1740886268180,-500.0,0.00026847,2]
[355066592,1740886268190,-500.0,0.00026847,2]
[355066594,1740886268199,-500.0,0.00026847,2]
[355066596,1740886268208,-502.69,0.00026847,2]
[355066598,1740886268218,-500.0,0.00026847,2]
[355066600,1740886268227,-500.0,0.00026847,2]
[355066602,1740886268238,-517.97,0.00026847,2]
[355066604,1740886268248,-612.51,0.00026847,2]
[355066606,1740886268257,-500.0,0.00026847,2]
[355066608,1740886268266,-500.0,0.00026847,2]
[355066610,1740886268277,-500.0,0.00026847,2]
[355066612,1740886268286,-500.0,0.00026847,2]
[355066614,1740886268296,-500.0,0.00026847,2]
[355066616,1740886268305,-500.0,0.00026847,2]
[355066618,1740886268316,-2080.77,0.00026847,2]
[355066620,1740886268331,-530.68,0.00026847,2]
[355066622,1740886268341,-1512.09,0.00026847,2]
[355066624,1740886268351,-500.0,0.00026847,2]
[355066626,1740886268360,-2251.6,0.00026847,2]
[355066628,1740886268370,-756.86,0.00026847,2]
[355066630,1740886268381,-500.0,0.00026847,2]
[355066632,1740886268390,-1576.87,0.00026847,2]
[355066634,1740886268400,-702.12,0.00026847,2]
[355066636,1740886268409,-355.09,0.00026847,2]
[355066638,1740886268418,-1032.14,0.00026847,2]
[355066640,1740886268428,-563.08,0.00026847,2]
[355066642,1740886268437,-1051.96,0.00026847,2]
[355066644,1740886268447,-500.0,0.00026847,2]
[355066646,1740886268456,-500.0,0.00026847,2]
[355066648,1740886268466,-1280.59,0.00026847,2]
[355066650,1740886268477,-500.0,0.00026847,2]
[355066652,1740886268486,-613.87,0.00026847,2]
[355066654,1740886268496,-1032.28,0.00026847,2]
[355066656,1740886268505,-744.55,0.00026847,2]
[355066658,1740886268515,-883.02,0.00026847,2]
[355066660,1740886268524,-1104.35,0.00026847,2]
[355066662,1740886268534,-508.86,0.00026847,2]
[355066664,1740886268545,-500.0,0.00026847,2]
[355066666,1740886268554,-1457.92,0.00026847,2]
[355066668,1740886268564,-811.98,0.00026847,2]
[355066670,1740886268577,-500.0,0.00026847,2]
[355066672,1740886268587,-1709.58,0.00026847,2]
[355066674,1740886268597,-1625.42,0.00026847,2]
[355066676,1740886268608,-1889.57,0.00026847,2]
[355066678,1740886268618,-500.0,0.00026847,2]
[355066680,1740886268627,-500.0,0.00026847,2]
[355066682,1740886268637,-1547.38,0.00026847,2]
[355066684,1740886268647,-500.0,0.00026847,2]
[355066686,1740886268658,-1000.0,0.00026847,2]
[355066688,1740886268668,-1485.16,0.00026847,2]
[355066690,1740886268678,-945.2,0.00026847,2]
[355066692,1740886268689,-1404.56,0.00026847,2]
[355066694,1740886268699,-500.0,0.00026847,2]
[355066696,1740886268709,-500.0,0.00026847,2]
[355066699,1740886268718,-1332.39,0.00026847,2]
[355066700,1740886268728,-500.0,0.00026847,2]
[355066702,1740886268738,-549.14,0.00026847,2]
[355066704,1740886268747,-500.0,0.00026847,2]
[355066706,1740886268757,-500.0,0.00026847,2]
[355066708,1740886268767,-500.0,0.00026847,2]
[355066710,1740886268776,-561.18258914,0.00026847,2]
[355066712,1740886268786,-500.0,0.00026847,2]
[355066714,1740886268795,-596.9,0.00026847,2]
[355066716,1740886268806,-750.14,0.00026847,2]
[355066718,1740886268816,-500.0,0.00026847,2]
[355066720,1740886268826,-253.61,0.00026847,2]
[355066722,1740886268836,-1874.6,0.00026847,2]
[355066724,1740886268846,-500.0,0.00026847,2]
[355066726,1740886268855,-500.0,0.00026847,2]
[355066728,1740886268865,-2112.91,0.00026847,2]
[355066730,1740886268875,-500.0,0.00026847,2]
[355066733,1740886268885,-500.0,0.00026848,2]
[355066735,1740886268894,-234.834667,0.00026848,7]
[355066737,1740886268904,-500.0,0.00026848,2]
[355066739,1740886268913,-500.0,0.00026848,2]
[355066740,1740886268923,-647.64,0.00026848,2]
[355066742,1740886268932,-534.37,0.00026848,2]
[355066744,1740886268942,-500.0,0.00026848,2]
[355066746,1740886268952,-500.0,0.00026848,2]
[355066748,1740886268962,-500.0,0.00026848,2]
[355066750,1740886268972,-151.0,0.00026848,7]
[355066752,1740886268981,-500.0,0.00026848,2]
[355066754,1740886268991,-500.0,0.00026848,2]
[355066756,1740886269001,-793.43,0.00026848,2]
[355066758,1740886269011,-500.0,0.00026848,2]
[355066760,1740886269021,-500.0,0.00026848,2]
[355066762,1740886269031,-500.0,0.00026848,2]
[355066764,1740886269040,-759.83,0.00026848,2]
[355066766,1740886269050,-758.88,0.00026848,2]
[355066768,1740886269059,-500.0,0.00026848,2]
[355066770,1740886269069,-500.0,0.00026848,2]
[355066772,1740886269081,-511.96,0.00026848,2]
[355066774,1740886269092,-500.0,0.00026848,2]
[355066776,1740886269102,-500.0,0.00026848,2]
[355066778,1740886269111,-773.0,0.00026848,2]
[355066780,1740886269121,-972.77,0.00026848,2]
[355066782,1740886269131,-500.0,0.00026848,2]
[355066784,1740886269140,-500.0,0.00026848,2]
[355066786,1740886269150,-930.92,0.00026848,2]
[355066788,1740886269159,-500.0,0.00026848,2]
[355066790,1740886269169,-510.98636228,0.00026848,2]
[355066792,1740886269179,-1323.95,0.00026848,2]
[355066794,1740886269189,-500.0,0.00026848,2]
[355066796,1740886269199,-585.56,0.00026848,2]
[355066798,1740886269209,-596.03,0.00026848,2]
[355066800,1740886269219,-500.0,0.00026848,2]
[355066802,1740886269230,-509.2641306,0.00026848,2]
[355066804,1740886269241,-676.15,0.00026848,2]
[355066806,1740886269250,-500.0,0.00026848,2]
[355066808,1740886269260,-615.85,0.00026848,2]
[355066810,1740886269270,-628.7,0.00026848,2]
[355066812,1740886269281,-1083.56,0.00026848,2]
[355066814,1740886269291,-725.32,0.00026848,2]
[355066816,1740886269301,-500.0,0.00026848,2]
[355066818,1740886269311,-500.0,0.00026848,2]
[355066820,1740886269324,-500.0,0.00026848,2]
[355066822,1740886269334,-574.97,0.00026848,2]
[355066824,1740886269343,-500.0,0.00026848,2]
[355066826,1740886269353,-1484.24,0.00026848,2]
[355066828,1740886269362,-500.0,0.00026848,2]
[355066846,1740886269521,-500.0,0.00026848,2]
[355066848,1740886269533,-500.0,0.00026848,2]
[355066850,1740886269543,-852.48,0.00026848,2]
[355066852,1740886269552,-500.0,0.00026849,2]
[355066854,1740886269562,-500.0,0.00026849,2]
[355066856,1740886269572,-151.0,0.00026849,7]
[355066858,1740886269582,-594.87,0.00026849,2]
[355066860,1740886269591,-500.0,0.00026849,2]
[355066862,1740886269601,-500.0,0.00026849,2]
[355066864,1740886269611,-2118.74,0.00026849,2]
[355066866,1740886269621,-500.0,0.00026849,2]
[355066868,1740886269630,-770.88,0.00026849,2]
[355066870,1740886269639,-689.78,0.00026849,2]
[355066872,1740886269649,-1773.24,0.00026849,2]
[355066873,1740886269658,-500.0,0.00026849,2]
[355066876,1740886269670,-829.94,0.00026849,2]
[355066878,1740886269679,-700.04,0.00026849,2]
[355066880,1740886269689,-2186.92,0.00026849,2]
[355066881,1740886269699,-935.67,0.00026849,2]
[355066883,1740886269708,-2071.99,0.00026849,2]
[355066885,1740886269717,-1297.72,0.00026849,2]
[355066886,1740886269726,-1265.46,0.00026849,2]
[355066887,1740886269735,-1949.08,0.00026849,2]
[355066888,1740886269745,-527.72,0.00026849,2]
[355066889,1740886269754,-163.61804472,0.00026849,2]
[355066890,1740886269764,-500.0,0.00026849,2]
[355066891,1740886269774,-500.0,0.00026849,2]
[355066892,1740886269784,-500.0,0.00026849,2]
[355066893,1740886269793,-921.11,0.00026849,2]
[355066894,1740886269803,-500.0,0.00026849,2]
[355066895,1740886269813,-892.94,0.00026849,2]
[355066896,1740886269823,-500.0,0.00026849,2]
[355066897,1740886269833,-156.76,0.00026882,2]
[355066898,1740886269842,-295.09,0.00026941,2]
[355066899,1740886269851,-222.69,0.00026977,2]
[355066900,1740886269861,-3436.02272048,0.0002698,2]
[355066901,1740886269871,-695.86,0.00026986,120]
[355066903,1740886269881,-1798.8675765,0.00027,2]
[355066905,1740886269891,-600.0,0.00027,2]
[355066907,1740886269901,-1000.0,0.00027086,2]
[355066909,1740886269915,-222.69,0.00027108,2]
[355066911,1740886269924,-500.0,0.00027113,2]
[355066913,1740886269934,-500.0,0.00027113,2]
[355066915,1740886269943,-1920.82,0.00027113,2]
[355066917,1740886269952,-500.0,0.00027113,2]
[355066919,1740886269962,-634.404577,0.00027113,2]
[355066921,1740886269971,-888.71,0.00027113,2]
[355066923,1740886269981,-687.32,0.00027113,2]
[355066925,1740886269990,-1223.77,0.00027113,2]
[355066927,1740886270000,-1307.848542,0.00027113,2]
[355066929,1740886270009,-587.99,0.00027113,2]
[355066931,1740886270019,-784.37,0.00027113,2]
[355066933,1740886270029,-536.68,0.00027113,2]
[355066935,1740886270039,-909.18,0.00027113,2]
[355066937,1740886270048,-804.26,0.00027113,2]
[355066939,1740886270058,-500.0,0.00027113,2]
[355066941,1740886270068,-500.0,0.00027113,2]
[355066943,1740886270079,-1965.8,0.00027113,2]
[355066945,1740886270088,-1217.64,0.00027113,2]
[355066947,1740886270097,-1549.49,0.00027113,2]
[355066949,1740886270107,-1656.93,0.00027113,2]
[355066951,1740886270116,-488.84366396,0.00027113,2]
[355066953,1740886270126,-2049.58,0.00027113,2]
[355066955,1740886270134,-1403.0,0.00027113,2]
[355066957,1740886270144,-599.61,0.00027113,2]
[355066959,1740886270154,-1415.66,0.00027113,2]
[355066961,1740886270164,-1518.4,0.00027114,2]
[355066963,1740886270173,-1174.52,0.00027114,2]
[355066965,1740886270182,-568.93,0.00027116,2]
[355066967,1740886270192,-500.0,0.00027116,2]
[355066969,1740886270202,-500.0,0.00027116,2]
[355066971,1740886270212,-500.0,0.00027116,2]
[355066973,1740886270221,-500.0,0.00027116,2]
[355066975,1740886270230,-500.0,0.00027116,2]
[355066977,1740886270242,-1119.09,0.00027116,2]
[355066979,1740886270251,-500.0,0.00027116,2]
[355066981,1740886270260,-500.0,0.00027116,2]
[355066983,1740886270269,-500.0,0.00027116,2]
[355066985,1740886270279,-500.0,0.00027116,2]
[355066986,1740886270288,-1177.24,0.00027116,2]
[355066988,1740886270297,-737.91,0.00027116,2]
[355066990,1740886270307,-572.57,0.00027116,2]
[355066992,1740886270317,-500.0,0.00027116,2]
[355066994,1740886270328,-901.55,0.00027118,90]
[355066996,1740886270337,-500.0,0.00027121,2]
[355066998,1740886270347,-500.0,0.00027121,2]
[355067000,1740886270356,-151.0,0.00027121,7]
[355067002,1740886270365,-367.53,0.00027121,2]
[355067004,1740886270374,-572.4,0.00027121,2]
[355067006,1740886270383,-500.0,0.00027121,2]
[355067008,1740886270393,-649.25,0.00027121,2]
[355067010,1740886270402,-500.0,0.00027121,2]
[355067012,1740886270411,-512.54,0.00027121,2]
[355067014,1740886270420,-374.99,0.00027121,2]
[355067016,1740886270429,-456.94,0.00027121,2]
[355067018,1740886270438,-500.0,0.00027121,2]
[355067020,1740886270448,-500.0,0.00027121,2]
[355067022,1740886270458,-263.72,0.00027121,2]
[355067024,1740886270468,-500.0,0.00027121,2]
[355067026,1740886270477,-500.0,0.00027121,2]
[355067028,1740886270486,-500.0,0.00027121,2]
[355067030,1740886270496,-443.51377222,0.00027121,2]
[355067031,1740886270505,-500.0,0.00027121,2]
[355067033,1740886270515,-500.0,0.00027121,2]
[355067035,1740886270525,-1302.52,0.00027121,2]
[355067037,1740886270534,-1313.5,0.00027121,2]
[355067039,1740886270543,-1610.22,0.00027121,2]
[355067041,1740886270553,-500.0,0.00027121,2]
[355067043,1740886270564,-500.0,0.00027121,2]
[355067045,1740886270573,-500.0,0.00027121,2]
[355067047,1740886270583,-502.69,0.00027121,2]
[355067049,1740886270592,-275.9,0.00027121,2]
[355067051,1740886270601,-590.67712964,0.00027121,2]
[355067053,1740886270610,-517.97,0.00027121,2]
[355067055,1740886270619,-500.0,0.00027121,2]
[355067057,1740886270629,-500.0,0.00027121,2]
[355067059,1740886270638,-500.0,0.00027121,2]
[355067061,1740886270648,-500.0,0.00027121,2]
[355067063,1740886270657,-500.0,0.00027121,2]
[355067065,1740886270666,-500.0,0.00027121,2]
[355067067,1740886270676,-2080.77,0.00027121,2]
[355067069,1740886270685,-530.68,0.00027121,2]
[355067071,1740886270694,-1512.09,0.00027121,2]
[355067073,1740886270703,-500.0,0.00027121,2]
[355067075,1740886270713,-2251.6,0.00027121,2]
[355067077,1740886270722,-756.86,0.00027121,2]
[355067079,1740886270731,-617.34940722,0.00027121,2]
[355067080,1740886270741,-1576.87,0.00027121,2]
[355067082,1740886270750,-702.12,0.00027121,2]
[355067084,1740886270759,-1032.14,0.00027121,2]
[355067086,1740886270774,-563.08,0.00027121,2]
[355067088,1740886270783,-1051.96,0.00027121,2]
[355067090,1740886270793,-500.0,0.00027121,2]
[355067092,1740886270802,-500.0,0.00027121,2]
[355067094,1740886270812,-1280.59,0.00027121,2]
[355067096,1740886270823,-500.0,0.00027121,2]
[355067098,1740886270832,-613.87,0.00027121,2]
[355067101,1740886270842,-1032.28,0.00027121,2]
[355067102,1740886270851,-744.55,0.00027121,2]
[355067103,1740886270860,-883.02,0.00027121,2]
[355067105,1740886270869,-1104.35,0.00027121,2]
[355067106,1740886270879,-508.86,0.00027121,2]
[355067108,1740886270888,-500.0,0.00027121,2]
[355067109,1740886270897,-1457.92,0.00027121,2]
[355067110,1740886270907,-811.98,0.00027121,2]
[355067112,1740886270916,-398.5271521,0.00027121,2]
[355067113,1740886270925,-1709.58,0.00027121,2]
[355067115,1740886270934,-1625.42,0.00027121,2]
[355067116,1740886270943,-1889.57,0.00027121,2]
[355067117,1740886270952,-500.0,0.00027121,2]
[355067119,1740886270961,-500.0,0.00027121,2]
[355067120,1740886270971,-1547.38,0.00027121,2]
[355067122,1740886270980,-500.0,0.00027121,2]
[355067123,1740886270990,-1000.0,0.00027121,2]
[355067125,1740886271000,-1485.16,0.00027121,2]
[355067126,1740886271010,-945.2,0.00027121,2]
[355067128,1740886271020,-1404.56,0.00027121,2]
[355067129,1740886271029,-500.0,0.00027121,2]
[355067130,1740886271038,-500.0,0.00027121,2]
[355067132,1740886271047,-1332.39,0.00027121,2]
[355067133,1740886271056,-500.0,0.00027121,2]
[355067135,1740886271065,-549.14,0.00027121,2]
[355067136,1740886271076,-419.06,0.00027121,2]
[355067138,1740886271085,-201.35955039,0.00027121,2]
[355067139,1740886271094,-635.14,0.00027121,2]
[355067140,1740886271104,-500.0,0.00027121,2]
[355067142,1740886271113,-596.9,0.00027121,2]
[355067143,1740886271123,-750.14,0.00027121,2]
[355067145,1740886271133,-357.00140093,0.00027121,2]
[355067146,1740886271143,-1874.6,0.00027121,2]
[355067148,1740886271153,-500.0,0.00027121,2]
[355067150,1740886271163,-500.0,0.00027121,2]
[355067151,1740886271173,-2112.91,0.00027121,2]
[355067153,1740886271183,-500.0,0.00027121,2]
[355067154,1740886271191,-500.0,0.00027122,2]
[355067156,1740886271200,-500.0,0.00027122,2]
[355067157,1740886271210,-500.0,0.00027122,2]
[355067159,1740886271220,-647.64,0.00027122,2]
[355067160,1740886271230,-534.37,0.00027122,2]
[355067162,1740886271242,-500.0,0.00027122,2]
[355067163,1740886271251,-500.0,0.00027122,2]
[355067165,1740886271260,-500.0,0.00027122,2]
[355067166,1740886271270,-500.0,0.00027122,2]
[355067168,1740886271279,-500.0,0.00027122,2]
[355067169,1740886271290,-793.43,0.00027122,2]
[355067171,1740886271299,-500.0,0.00027122,2]
[355067172,1740886271308,-178.85102763,0.00027122,2]
[355067174,1740886271318,-500.0,0.00027122,2]
[355067175,1740886271329,-759.83,0.00027122,2]
[355067177,1740886271338,-758.88,0.00027122,2]
[355067178,1740886271347,-500.0,0.00027122,2]
[355067180,1740886271356,-500.0,0.00027122,2]
[355067181,1740886271365,-511.96,0.00027122,2]
[355067183,1740886271375,-500.0,0.00027122,2]
[355067185,1740886271384,-500.0,0.00027122,2]
[355067186,1740886271393,-773.0,0.00027122,2]
[355067187,1740886271402,-972.77,0.00027122,2]
[355067189,1740886271412,-500.0,0.00027122,2]
[355067191,1740886271422,-500.0,0.00027122,2]
[355067192,1740886271431,-930.92,0.00027122,2]
[355067194,1740886271440,-500.0,0.00027122,2]
[355067195,1740886271449,-1323.95,0.00027122,2]
[355067197,1740886271459,-500.0,0.00027122,2]
[355067198,1740886271468,-585.56,0.00027122,2]
[355067200,1740886271477,-596.03,0.00027122,2]
[355067201,1740886271487,-241.17810739,0.00027122,2]
[355067203,1740886271497,-676.15,0.00027122,2]
[355067204,1740886271506,-500.0,0.00027122,2]
[355067206,1740886271515,-615.85,0.00027122,2]
[355067207,1740886271524,-628.7,0.00027122,2]
[355067209,1740886271534,-1083.56,0.00027122,2]
[355067211,1740886271543,-725.32,0.00027122,2]
[355067212,1740886271553,-500.0,0.00027122,2]
[355067214,1740886271562,-500.0,0.00027122,2]
[355067215,1740886271571,-500.0,0.00027122,2]
[355067217,1740886271581,-574.97,0.00027122,2]
[355067218,1740886271591,-500.0,0.00027122,2]
[355067220,1740886271601,-1484.24,0.00027122,2]
[355067221,1740886271610,-500.0,0.00027122,2]
[355067223,1740886271619,-500.0,0.00027122,2]
[355067224,1740886271629,-500.0,0.00027122,2]
[355067226,1740886271638,-852.48,0.00027122,2]
[355067227,1740886271647,-22499.95803365,0.00027122,2]
[355067229,1740886271656,-12881.17950702,0.00027122,2]
[355067230,1740886271665,-500.0,0.00027123,2]
[355067232,1740886271675,-500.0,0.00027123,2]
[355067233,1740886271684,-594.87,0.00027123,2]
[355067235,1740886271693,-500.0,0.00027123,2]
[355067236,1740886271703,-500.0,0.00027123,2]
[355067238,1740886271712,-2118.74,0.00027123,2]
[355067239,1740886271721,-500.0,0.00027123,2]
[355067241,1740886271730,-770.88,0.00027123,2]
[355067242,1740886271740,-689.78,0.00027123,2]
[355067244,1740886271749,-1773.24,0.00027123,2]
[355067245,1740886271758,-585.65104241,0.00027123,2]
[355067247,1740886271768,-829.94,0.00027123,2]
[355067249,1740886271777,-700.04,0.00027123,2]
[355067250,1740886271787,-2186.92,0.00027123,2]
[355067252,1740886271796,-935.67,0.00027123,2]
[355067253,1740886271805,-2071.99,0.00027123,2]
[355067255,1740886271815,-1297.72,0.00027123,2]
[355067256,1740886271827,-1265.46,0.00027123,2]
[355067257,1740886271836,-1949.08,0.00027123,2]
[355067259,1740886271846,-500.0,0.00027123,2]
[355067260,1740886271855,-500.0,0.00027123,2]
[355067262,1740886271865,-500.0,0.00027123,2]
[355067263,1740886271874,-921.11,0.00027123,2]
[355067265,1740886271883,-500.0,0.00027123,2]
[355067266,1740886271892,-892.94,0.00027123,2]
[355067268,1740886271903,-500.0,0.00027123,2]
[355067269,1740886271912,-196.36,0.00027136,2]
[355067271,1740886271923,-63004.51972555,0.00027197,2]
[355067272,1740886271932,-222.69,0.0002724,2]
[355067274,1740886271941,-1257.56203829,0.0002727,2]
[355067275,1740886271950,-222.69,0.00027371,2]
[355067277,1740886271961,-937.94934965,0.00027383,4]
[355067279,1740886271970,-500.0,0.00027387,2]
[355067280,1740886271980,-500.0,0.00027387,2]
[355067282,1740886271989,-628.22,0.00027387,2]
[355067283,1740886271998,-1920.82,0.00027387,2]
[355067285,1740886272008,-381.08852121,0.00027387,2]
[355067286,1740886272018,-634.404577,0.00027387,2]
[355067288,1740886272028,-888.71,0.00027387,2]
[355067289,1740886272037,-687.32,0.00027387,2]
[355067291,1740886272046,-1223.77,0.00027387,2]
[355067292,1740886272055,-1307.848542,0.00027387,2]
[355067294,1740886272065,-587.99,0.00027387,2]
[355067295,1740886272075,-154.096799,0.00027387,2]
[355067297,1740886272085,-784.37,0.00027387,2]
[355067298,1740886272095,-536.68,0.00027387,2]
[355067300,1740886272104,-909.18,0.00027387,2]
[355067302,1740886272114,-804.26,0.00027387,2]
[355067303,1740886272123,-500.0,0.00027387,2]
[355067305,1740886272132,-500.0,0.00027387,2]
[355067306,1740886272141,-1965.8,0.00027387,2]
[355067308,1740886272150,-1217.64,0.00027387,2]
[355067309,1740886272159,-1549.49,0.00027387,2]
[355067311,1740886272169,-1656.93,0.00027387,2]
[355067312,1740886272179,-2049.58,0.00027387,2]
[355067314,1740886272188,-1403.0,0.00027387,2]
[355067315,1740886272198,-599.61,0.00027387,2]
[355067317,1740886272207,-1415.66,0.00027387,2]
[355067318,1740886272217,-1518.4,0.00027388,2]
[355067320,1740886272227,-1174.52,0.00027388,2]
[355067322,1740886272237,-568.93,0.0002739,2]
[355067323,1740886272249,-500.0,0.0002739,2]
[355067325,1740886272259,-500.0,0.0002739,2]
[355067326,1740886272268,-500.0,0.0002739,2]
[355067328,1740886272278,-356.81923649,0.0002739,2]
[355067329,1740886272288,-500.0,0.0002739,2]
[355067331,1740886272297,-1119.09,0.0002739,2]
[355067332,1740886272307,-500.0,0.0002739,2]
[355067334,1740886272317,-500.0,0.0002739,2]
[355067336,1740886272328,-500.0,0.0002739,2]
[355067337,1740886272337,-500.0,0.0002739,2]
[355067339,1740886272347,-1177.24,0.0002739,2]
[355067340,1740886272357,-737.91,0.0002739,2]
[355067342,1740886272367,-572.57,0.0002739,2]
[355067343,1740886272376,-500.0,0.0002739,2]
[355067345,1740886272385,-901.55,0.00027392,90]
[355067346,1740886272395,-500.0,0.00027395,2]
[355067358,1740886272550,-151.0,0.00027395,7]
[355067360,1740886272561,-151.0,0.00027395,7]
[355067361,1740886272570,-380.88466313,0.00027395,2]
[355067362,1740886272582,-572.4,0.00027395,2]
[355067363,1740886272591,-500.0,0.00027395,2]
[355067364,1740886272601,-649.25,0.00027395,2]
[355067365,1740886272610,-500.0,0.00027395,2]
[355067366,1740886272621,-512.54,0.00027395,2]
[355067367,1740886272631,-500.0,0.00027395,2]
[355067368,1740886272640,-500.0,0.00027395,2]
[355067369,1740886272651,-500.0,0.00027395,2]
[355067370,1740886272660,-521.97091882,0.00027395,2]
[355067371,1740886272670,-500.0,0.00027395,2]
[355067372,1740886272679,-500.0,0.00027395,120]
[355067373,1740886272689,-500.0,0.00027395,2]
[355067374,1740886272698,-500.0,0.00027395,2]
[355067375,1740886272708,-1302.52,0.00027395,2]
[355067376,1740886272717,-1313.5,0.00027395,2]
[355067377,1740886272728,-1610.22,0.00027395,2]
[355067378,1740886272740,-500.0,0.00027395,2]
[355067379,1740886272750,-500.0,0.00027395,2]
[355067380,1740886272763,-500.0,0.00027395,2]